[Event "Early-Titled-Tuesday-Blitz-March-05-2024"]
[Site "Chess.com"]
[Date "2024.03.05"]
[Round "4"]
[White "Al_Shima"]
[Black "Leo_C"]
[Result "0-1"]
[WhiteElo "2428"]
[BlackElo "2635"]
[TimeControl "180+1"]
[EndTime "8:42:57 PST"]
[Termination "Leo_C won by resignation"]

1. e4 {[%clk 0:03:00.9]} 1... c5 {[%clk 0:02:34.5]} 2. Nf3 {[%clk 0:03:00.3]}
2... d6 {[%clk 0:02:35]} 3. d4 {[%clk 0:03:00.5]} 3... cxd4 {[%clk 0:02:35.9]}
4. Nxd4 {[%clk 0:03:01.4]} 4... Nf6 {[%clk 0:02:36.4]} 5. Nc3 {[%clk 0:03:01.6]}
5... a6 {[%clk 0:02:36.8]} 6. h3 {[%clk 0:03:01.8]} 6... e5 {[%clk 0:02:36.8]}
7. Nde2 {[%clk 0:03:01.7]} 7... h5 {[%clk 0:02:35.6]} 8. g3 {[%clk 0:03:01.3]}
8... Be7 {[%clk 0:02:35.6]} 9. Bg2 {[%clk 0:03:01]} 9... O-O {[%clk 0:02:34.5]}
10. Be3 {[%clk 0:03:00]} 10... b5 {[%clk 0:02:30.6]} 11. Qd2 {[%clk 0:02:57.2]}
11... Bb7 {[%clk 0:02:28.5]} 12. O-O {[%clk 0:02:54.5]} 12... Nbd7 {[%clk
0:02:25.3]} 13. Rad1 {[%clk 0:02:52.7]} 13... Rc8 {[%clk 0:02:21.9]} 14. a3
{[%clk 0:02:50.3]} 14... Nc5 {[%clk 0:02:14.9]} 15. f3 {[%clk 0:02:35.5]} 15...
Qc7 {[%clk 0:02:06.1]} 16. Nc1 {[%clk 0:01:55.2]} 16... Rfd8 {[%clk 0:02:05.2]}
17. Bg5 {[%clk 0:01:54.4]} 17... d5 {[%clk 0:01:53.3]} 18. Bxf6 {[%clk
0:01:19.9]} 18... dxe4 {[%clk 0:01:51.8]} 19. Qf2 {[%clk 0:01:02.4]} 19... Bxf6
{[%clk 0:01:49.6]} 20. fxe4 {[%clk 0:01:00]} 20... Bg5 {[%clk 0:01:38.5]} 21.
Kh2 {[%clk 0:00:43.8]} 21... Qe7 {[%clk 0:01:23.2]} 22. h4 {[%clk 0:00:40.9]}
22... Bh6 {[%clk 0:01:22.8]} 23. Nb3 {[%clk 0:00:25.5]} 23... Ne6 {[%clk
0:01:19.3]} 24. Nd5 {[%clk 0:00:20.6]} 24... Bxd5 {[%clk 0:00:43.7]} 25. exd5
{[%clk 0:00:21.5]} 25... Nd4 {[%clk 0:00:44.2]} 26. Nxd4 {[%clk 0:00:13.4]}
26... exd4 {[%clk 0:00:45.1]} 27. Rxd4 {[%clk 0:00:13.7]} 27... Rd6 {[%clk
0:00:35.1]} 28. c3 {[%clk 0:00:05.4]} 28... Qc7 {[%clk 0:00:30.1]} 29. Re1
{[%clk 0:00:03.6]} 29... Rf8 {[%clk 0:00:29.2]} 30. Rde4 {[%clk 0:00:03.8]}
30... Rd7 {[%clk 0:00:26.1]} 31. Re5 {[%clk 0:00:03.9]} 31... g6 {[%clk
0:00:24.6]} 32. R5e2 {[%clk 0:00:04.5]} 32... Bg7 {[%clk 0:00:20.9]} 33. Rd1
{[%clk 0:00:04.8]} 33... Qd6 {[%clk 0:00:20.6]} 34. Red2 {[%clk 0:00:04.7]}
34... Be5 {[%clk 0:00:20]} 35. Re1 {[%clk 0:00:04.4]} 35... Re7 {[%clk
0:00:19.6]} 36. Rde2 {[%clk 0:00:04.8]} 36... Rfe8 {[%clk 0:00:20.2]} 37. Re3
{[%clk 0:00:02.5]} 37... Bxg3+ {[%clk 0:00:15.6]} 38. Qxg3 {[%clk 0:00:02.6]}
38... Qxg3+ {[%clk 0:00:15.7]} 39. Rxg3 {[%clk 0:00:01.7]} 39... Rxe1 {[%clk
0:00:15.8]} 40. Rd3 {[%clk 0:00:02.6]} 40... R1e3 {[%clk 0:00:14.4]} 41. Rd2
{[%clk 0:00:02.2]} 41... Re2 {[%clk 0:00:14.3]} 42. Rd4 {[%clk 0:00:02.9]} 42...
Rd8 {[%clk 0:00:09.3]} 43. d6 {[%clk 0:00:02.7]} 43... Rxb2 {[%clk 0:00:08]} 44.
d7 {[%clk 0:00:02.6]} 44... Re2 {[%clk 0:00:07.7]} 45. Kg3 {[%clk 0:00:02.8]}
45... Kf8 {[%clk 0:00:07.8]} 46. Bb7 {[%clk 0:00:02.7]} 46... Re6 {[%clk
0:00:07.2]} 47. Be4 {[%clk 0:00:01.3]} 47... Ke7 {[%clk 0:00:07.3]} 48. Bd5
{[%clk 0:00:01.5]} 48... Rxd7 {[%clk 0:00:05.5]} 49. Bxe6 {[%clk 0:00:01.6]}
49... Rxd4 {[%clk 0:00:05.9]} 50. cxd4 {[%clk 0:00:01.8]} 50... Kxe6 {[%clk
0:00:06.3]} 51. Kf4 {[%clk 0:00:02.4]} 51... f6 {[%clk 0:00:06.8]} 52. Ke4
{[%clk 0:00:02.8]} 52... Kd6 {[%clk 0:00:07.5]} 53. d5 {[%clk 0:00:02.6]} 53...
Kc5 {[%clk 0:00:07.8]} 54. a4 {[%clk 0:00:01.7]} 54... bxa4 {[%clk 0:00:07.7]}
55. d6 {[%clk 0:00:02.4]} 55... Kxd6 {[%clk 0:00:07.8]} 56. Kd4 {[%clk
0:00:02.7]} 56... Ke6 {[%clk 0:00:08.5]} 57. Kc3 {[%clk 0:00:03.6]} 57... Kf5
{[%clk 0:00:08.9]} 58. Kb4 {[%clk 0:00:04.1]} 58... Kf4 {[%clk 0:00:09.8]} 59.
Kxa4 {[%clk 0:00:05]} 59... Kg4 {[%clk 0:00:10.5]} 60. Ka5 {[%clk 0:00:05.9]}
60... Kxh4 {[%clk 0:00:11.4]} 61. Kxa6 {[%clk 0:00:06.8]} 61... Kg3 {[%clk
0:00:11.9]} 62. Kb5 {[%clk 0:00:07.7]} 62... h4 {[%clk 0:00:12.8]} 63. Kc4
{[%clk 0:00:08.6]} 63... h3 {[%clk 0:00:13.7]} 0-1

[Event "Early-Titled-Tuesday-Blitz-March-05-2024"]
[Site "Chess.com"]
[Date "2024.03.05"]
[Round "4"]
[White "toninhojit"]
[Black "AEMEffi"]
[Result "1-0"]
[WhiteElo "2500"]
[BlackElo "2320"]
[TimeControl "180+1"]
[EndTime "8:43:01 PST"]
[Termination "toninhojit won on time"]

1. d4 {[%clk 0:03:00.9]} 1... Nf6 {[%clk 0:02:58.4]} 2. c4 {[%clk 0:03:01.1]}
2... g6 {[%clk 0:02:58.8]} 3. Nc3 {[%clk 0:03:01.1]} 3... d5 {[%clk 0:02:59.4]}
4. cxd5 {[%clk 0:03:01.2]} 4... Nxd5 {[%clk 0:03:00.3]} 5. e4 {[%clk 0:03:01.6]}
5... Nxc3 {[%clk 0:03:00.8]} 6. bxc3 {[%clk 0:03:02.3]} 6... Bg7 {[%clk
0:03:01.3]} 7. Nf3 {[%clk 0:03:02.9]} 7... O-O {[%clk 0:03:01.6]} 8. Be2 {[%clk
0:03:03.5]} 8... b6 {[%clk 0:03:00]} 9. O-O {[%clk 0:03:01.9]} 9... Bb7 {[%clk
0:03:00.9]} 10. e5 {[%clk 0:02:52.6]} 10... c5 {[%clk 0:02:43]} 11. Be3 {[%clk
0:02:48.4]} 11... cxd4 {[%clk 0:02:41.1]} 12. cxd4 {[%clk 0:02:49.3]} 12... Bd5
{[%clk 0:02:36.4]} 13. Qd2 {[%clk 0:02:46.9]} 13... Nc6 {[%clk 0:02:30]} 14.
Rfd1 {[%clk 0:02:45.5]} 14... Qd7 {[%clk 0:02:23.2]} 15. Bh6 {[%clk 0:02:43.6]}
15... Rfd8 {[%clk 0:02:07.1]} 16. Bxg7 {[%clk 0:02:43]} 16... Kxg7 {[%clk
0:02:08]} 17. Qe3 {[%clk 0:02:36.7]} 17... Rac8 {[%clk 0:02:03.9]} 18. Bb5
{[%clk 0:02:30.5]} 18... Qf5 {[%clk 0:01:48.3]} 19. Rac1 {[%clk 0:02:10.1]}
19... Bxf3 {[%clk 0:01:32.1]} 20. gxf3 {[%clk 0:02:11]} 20... Nxd4 {[%clk
0:01:20.1]} 21. Rxc8 {[%clk 0:02:04.7]} 21... Nxf3+ {[%clk 0:01:19.4]} 22. Qxf3
{[%clk 0:01:51.3]} 22... Qxf3 {[%clk 0:01:19]} 23. Rcxd8 {[%clk 0:01:48.5]}
23... Qg4+ {[%clk 0:01:16.9]} 24. Kf1 {[%clk 0:01:45]} 24... Qh3+ {[%clk
0:01:13.9]} 25. Ke1 {[%clk 0:01:43.9]} 25... Qxh2 {[%clk 0:01:09.4]} 26. R8d5
{[%clk 0:01:26.2]} 26... e6 {[%clk 0:01:08.4]} 27. R5d4 {[%clk 0:01:20.9]} 27...
Qxe5+ {[%clk 0:01:08.2]} 28. Be2 {[%clk 0:01:21.6]} 28... h5 {[%clk 0:00:57.5]}
29. Kf1 {[%clk 0:01:20.3]} 29... Qh2 {[%clk 0:00:56.8]} 30. Bf3 {[%clk
0:01:17.5]} 30... g5 {[%clk 0:00:44.4]} 31. Rd7 {[%clk 0:01:13.5]} 31... g4
{[%clk 0:00:42.4]} 32. Bg2 {[%clk 0:00:57.3]} 32... h4 {[%clk 0:00:38.1]} 33.
R1d4 {[%clk 0:00:57.4]} 33... h3 {[%clk 0:00:23.9]} 34. Rxg4+ {[%clk 0:00:57.1]}
34... Kf6 {[%clk 0:00:24.8]} 35. Bf3 {[%clk 0:00:48.3]} 35... Qe5 {[%clk
0:00:20.8]} 36. Rdd4 {[%clk 0:00:47.6]} 36... Ke7 {[%clk 0:00:15.3]} 37. Rge4
{[%clk 0:00:45.9]} 37... Qf5 {[%clk 0:00:12.5]} 38. Ke2 {[%clk 0:00:38.6]} 38...
h2 {[%clk 0:00:11.8]} 39. Rh4 {[%clk 0:00:38.8]} 39... Qc2+ {[%clk 0:00:11.6]}
40. Rd2 {[%clk 0:00:33.8]} 40... Qc3 {[%clk 0:00:04.3]} 41. Rd3 {[%clk
0:00:25.9]} 41... Qe5+ {[%clk 0:00:04.1]} 42. Kf1 {[%clk 0:00:21.1]} 42... Qa1+
{[%clk 0:00:04]} 43. Rd1 {[%clk 0:00:19.6]} 43... Qxa2 {[%clk 0:00:04.8]} 44.
Rxh2 {[%clk 0:00:19.7]} 44... Qb3 {[%clk 0:00:05.1]} 45. Kg2 {[%clk 0:00:18.9]}
45... a5 {[%clk 0:00:04.9]} 46. Rh3 {[%clk 0:00:17.7]} 46... a4 {[%clk
0:00:05.2]} 47. Bh5 {[%clk 0:00:17.1]} 47... Qb4 {[%clk 0:00:05.2]} 48. Rf3
{[%clk 0:00:16.3]} 48... f5 {[%clk 0:00:05]} 49. Re3 {[%clk 0:00:15.2]} 49...
Qh4 {[%clk 0:00:04.8]} 50. Bf3 {[%clk 0:00:14.6]} 50... Qg5+ {[%clk 0:00:04.7]}
51. Kf1 {[%clk 0:00:15.2]} 51... Qf4 {[%clk 0:00:04]} 52. Rde1 {[%clk
0:00:15.1]} 52... Qc4+ {[%clk 0:00:04]} 53. Kg2 {[%clk 0:00:14.9]} 53... a3
{[%clk 0:00:03.9]} 54. Be2 {[%clk 0:00:13.1]} 54... Qb4 {[%clk 0:00:03]} 55. Bd1
{[%clk 0:00:10.6]} 55... Qd6 {[%clk 0:00:01.8]} 56. Bb3 {[%clk 0:00:10.7]} 56...
e5 {[%clk 0:00:01.4]} 57. Rxe5+ {[%clk 0:00:10.8]} 57... Kd8 {[%clk 0:00:01.7]}
58. Rd5 {[%clk 0:00:11.4]} 58... Qxd5+ {[%clk 0:00:01.7]} 59. Bxd5 {[%clk
0:00:12.3]} 1-0

[Event "Early-Titled-Tuesday-Blitz-March-05-2024"]
[Site "Chess.com"]
[Date "2024.03.05"]
[Round "4"]
[White "Pasmendjambvirgulptipon98"]
[Black "OneTrickPony_82"]
[Result "0-1"]
[WhiteElo "2330"]
[BlackElo "2518"]
[TimeControl "180+1"]
[EndTime "8:43:03 PST"]
[Termination "OneTrickPony_82 won on time"]

1. e4 {[%clk 0:03:00.2]} 1... e5 {[%clk 0:03:00.2]} 2. Nf3 {[%clk 0:03:00.1]}
2... Nc6 {[%clk 0:03:00.8]} 3. Bb5 {[%clk 0:02:59.8]} 3... a6 {[%clk 0:03:01.4]}
4. Bxc6 {[%clk 0:02:59.9]} 4... dxc6 {[%clk 0:03:01.3]} 5. O-O {[%clk
0:03:00.6]} 5... Qf6 {[%clk 0:03:01.2]} 6. d3 {[%clk 0:03:00.3]} 6... Ne7 {[%clk
0:02:56.8]} 7. Nbd2 {[%clk 0:02:55.3]} 7... Ng6 {[%clk 0:02:49.9]} 8. Nc4 {[%clk
0:02:53.4]} 8... Bg4 {[%clk 0:02:44.8]} 9. h3 {[%clk 0:02:41]} 9... Bxf3 {[%clk
0:02:44.5]} 10. Qxf3 {[%clk 0:02:41.9]} 10... Qxf3 {[%clk 0:02:43.9]} 11. gxf3
{[%clk 0:02:42.8]} 11... O-O-O {[%clk 0:02:36.9]} 12. a4 {[%clk 0:02:38.9]}
12... b6 {[%clk 0:02:33.8]} 13. Kg2 {[%clk 0:02:35.7]} 13... Bd6 {[%clk
0:02:29.9]} 14. Be3 {[%clk 0:02:30.5]} 14... f5 {[%clk 0:02:25.9]} 15. Bg5
{[%clk 0:01:58.2]} 15... Rdf8 {[%clk 0:02:15.9]} 16. Bd2 {[%clk 0:00:44.8]}
16... f4 {[%clk 0:02:09.3]} 17. Bc3 {[%clk 0:00:34.8]} 17... Nh4+ {[%clk
0:02:08.9]} 18. Kh1 {[%clk 0:00:32.2]} 18... Nxf3 {[%clk 0:02:08.8]} 19. Kg2
{[%clk 0:00:30.8]} 19... Nh4+ {[%clk 0:02:05.8]} 20. Kh2 {[%clk 0:00:30.8]}
20... Re8 {[%clk 0:02:03.2]} 21. f3 {[%clk 0:00:29.9]} 21... c5 {[%clk
0:01:52.8]} 22. Be1 {[%clk 0:00:23.1]} 22... Ng6 {[%clk 0:01:50.8]} 23. Bf2
{[%clk 0:00:22.9]} 23... Ne7 {[%clk 0:01:46]} 24. c3 {[%clk 0:00:20.5]} 24...
Nc6 {[%clk 0:01:43.4]} 25. Rfd1 {[%clk 0:00:18.3]} 25... Rd8 {[%clk 0:01:35.4]}
26. Rg1 {[%clk 0:00:14.7]} 26... g6 {[%clk 0:01:34.8]} 27. Rgd1 {[%clk
0:00:13.9]} 27... Rhe8 {[%clk 0:01:34.4]} 28. Kg2 {[%clk 0:00:14.1]} 28... Bf8
{[%clk 0:01:32.9]} 29. Bh4 {[%clk 0:00:10.5]} 29... Be7 {[%clk 0:01:29.8]} 30.
Bf2 {[%clk 0:00:09.3]} 30... Kb7 {[%clk 0:01:27.4]} 31. Kf1 {[%clk 0:00:09.5]}
31... Bf6 {[%clk 0:01:25.2]} 32. Ke2 {[%clk 0:00:09.6]} 32... Ra8 {[%clk
0:01:21.7]} 33. Rab1 {[%clk 0:00:05.1]} 33... Be7 {[%clk 0:01:14.7]} 34. Na3
{[%clk 0:00:03.5]} 34... Bf8 {[%clk 0:01:13.2]} 35. d4 {[%clk 0:00:02.9]} 35...
cxd4 {[%clk 0:01:11.8]} 36. cxd4 {[%clk 0:00:03.4]} 36... exd4 {[%clk 0:01:10]}
37. Nc2 {[%clk 0:00:02.5]} 37... Bc5 {[%clk 0:01:03.9]} 38. Nxd4 {[%clk
0:00:02.8]} 38... Nxd4+ {[%clk 0:01:03.9]} 39. Bxd4 {[%clk 0:00:03.7]} 39...
Bxd4 {[%clk 0:01:04.4]} 40. Rxd4 {[%clk 0:00:04]} 40... Rad8 {[%clk 0:01:05]}
41. Rbd1 {[%clk 0:00:03.9]} 41... Rxd4 {[%clk 0:01:05]} 42. Rxd4 {[%clk
0:00:04.8]} 42... Re5 {[%clk 0:01:05.2]} 43. Rd8 {[%clk 0:00:04.5]} 43... Rh5
{[%clk 0:01:04]} 44. Rf8 {[%clk 0:00:03.4]} 44... g5 {[%clk 0:00:59.9]} 45. e5
{[%clk 0:00:01.8]} 45... Rxh3 {[%clk 0:00:59.5]} 46. e6 {[%clk 0:00:01.9]} 46...
Rh6 {[%clk 0:00:58]} 47. Re8 {[%clk 0:00:01.2]} 47... Kc6 {[%clk 0:00:56.2]} 48.
Kd3 {[%clk 0:00:01.8]} 48... Kd6 {[%clk 0:00:55.4]} 49. e7 {[%clk 0:00:02.4]}
49... Kd7 {[%clk 0:00:52.5]} 50. Ra8 {[%clk 0:00:02.8]} 50... Kxe7 {[%clk
0:00:51]} 51. Rxa6 {[%clk 0:00:03.2]} 51... Rh2 {[%clk 0:00:49.4]} 52. Ra7
{[%clk 0:00:03.1]} 52... Kd6 {[%clk 0:00:49.4]} 53. a5 {[%clk 0:00:03.6]} 53...
bxa5 {[%clk 0:00:48.9]} 54. Rxa5 {[%clk 0:00:04.5]} 54... h6 {[%clk 0:00:49.3]}
55. Rf5 {[%clk 0:00:04.8]} 55... Ke6 {[%clk 0:00:46.1]} 56. Rc5 {[%clk
0:00:05.1]} 56... Rxb2 {[%clk 0:00:42.7]} 57. Rxc7 {[%clk 0:00:03.2]} 57... Rb3+
{[%clk 0:00:43]} 58. Ke2 {[%clk 0:00:02.2]} 58... h5 {[%clk 0:00:40.9]} 59. Rc6+
{[%clk 0:00:02.1]} 59... Kd5 {[%clk 0:00:36.6]} 60. Rg6 {[%clk 0:00:02.3]} 60...
Kd4 {[%clk 0:00:31.9]} 61. Rxg5 {[%clk 0:00:02.4]} 61... Rb2+ {[%clk 0:00:32.5]}
62. Kf1 {[%clk 0:00:01.8]} 62... Ke3 {[%clk 0:00:33]} 63. Rxh5 {[%clk
0:00:01.5]} 63... Kxf3 {[%clk 0:00:32]} 64. Rh3+ {[%clk 0:00:02.2]} 64... Kg4
{[%clk 0:00:31.2]} 65. Ra3 {[%clk 0:00:02.9]} 65... Rb5 {[%clk 0:00:26.4]} 66.
Rc3 {[%clk 0:00:02.7]} 66... Rh5 {[%clk 0:00:27]} 67. Ra3 {[%clk 0:00:02.8]}
67... Rh3 {[%clk 0:00:27.6]} 68. Ra8 {[%clk 0:00:02.1]} 68... Rb3 {[%clk
0:00:28.2]} 69. Rg8+ {[%clk 0:00:01.5]} 69... Kf3 {[%clk 0:00:28.6]} 70. Re8
{[%clk 0:00:02]} 70... Rb1+ {[%clk 0:00:28.1]} 0-1

[Event "Early-Titled-Tuesday-Blitz-March-05-2024"]
[Site "Chess.com"]
[Date "2024.03.05"]
[Round "4"]
[White "JG-17"]
[Black "luckyswitchback"]
[Result "1-0"]
[WhiteElo "2506"]
[BlackElo "2668"]
[TimeControl "180+1"]
[EndTime "8:43:05 PST"]
[Termination "JG-17 won by checkmate"]

1. d4 {[%clk 0:03:00.9]} 1... d5 {[%clk 0:02:57.9]} 2. c4 {[%clk 0:03:00.6]}
2... e6 {[%clk 0:02:58]} 3. Nc3 {[%clk 0:02:59.2]} 3... c5 {[%clk 0:02:58.3]} 4.
cxd5 {[%clk 0:02:57.7]} 4... cxd4 {[%clk 0:02:58.5]} 5. Qxd4 {[%clk 0:02:53.6]}
5... exd5 {[%clk 0:02:58.6]} 6. Qxd5 {[%clk 0:02:52.5]} 6... Nd7 {[%clk
0:02:52.9]} 7. Nf3 {[%clk 0:02:49.2]} 7... Ngf6 {[%clk 0:02:52.9]} 8. Qd1 {[%clk
0:02:37.2]} 8... Bb4 {[%clk 0:02:53.1]} 9. e3 {[%clk 0:02:32.3]} 9... Qa5 {[%clk
0:02:48.3]} 10. Bd2 {[%clk 0:02:31.6]} 10... O-O {[%clk 0:02:46.8]} 11. a3
{[%clk 0:02:30.4]} 11... Be7 {[%clk 0:02:39.6]} 12. Bd3 {[%clk 0:02:25.4]} 12...
Nb6 {[%clk 0:02:34.2]} 13. Nb5 {[%clk 0:01:32]} 13... Qa4 {[%clk 0:02:31.3]} 14.
Qxa4 {[%clk 0:01:04.3]} 14... Nxa4 {[%clk 0:02:32.2]} 15. O-O-O {[%clk
0:00:56.8]} 15... Be6 {[%clk 0:02:22.4]} 16. Kb1 {[%clk 0:00:56.4]} 16... Rfc8
{[%clk 0:01:57.5]} 17. Nbd4 {[%clk 0:00:53.3]} 17... Bd5 {[%clk 0:01:56.1]} 18.
Rc1 {[%clk 0:00:51.2]} 18... Nc5 {[%clk 0:01:54.7]} 19. Bf5 {[%clk 0:00:45.3]}
19... Rd8 {[%clk 0:01:50.3]} 20. b4 {[%clk 0:00:35.3]} 20... Nce4 {[%clk
0:01:46.5]} 21. Be1 {[%clk 0:00:30.8]} 21... g6 {[%clk 0:01:39.9]} 22. Bxe4
{[%clk 0:00:30]} 22... Bxe4+ {[%clk 0:01:35.3]} 23. Kb2 {[%clk 0:00:29.7]} 23...
Nd5 {[%clk 0:01:34.6]} 24. Nb5 {[%clk 0:00:24.6]} 24... Bf6+ {[%clk 0:01:32.6]}
25. Nfd4 {[%clk 0:00:25]} 25... a6 {[%clk 0:01:30.8]} 26. Nc3 {[%clk 0:00:23.5]}
26... Nxc3 {[%clk 0:01:26.1]} 27. Bxc3 {[%clk 0:00:22.9]} 27... Bxg2 {[%clk
0:01:26.4]} 28. Rhd1 {[%clk 0:00:21.9]} 28... Rac8 {[%clk 0:01:23.1]} 29. Ne2
{[%clk 0:00:09.9]} 29... Rxd1 {[%clk 0:01:14.4]} 30. Rxd1 {[%clk 0:00:10.8]}
30... Bxc3+ {[%clk 0:01:15.1]} 31. Nxc3 {[%clk 0:00:11.4]} 31... Bc6 {[%clk
0:01:15.9]} 32. a4 {[%clk 0:00:07.6]} 32... Rc7 {[%clk 0:01:14.3]} 33. b5 {[%clk
0:00:06.5]} 33... axb5 {[%clk 0:01:14.8]} 34. axb5 {[%clk 0:00:07.4]} 34... Bf3
{[%clk 0:01:15.7]} 35. Rd8+ {[%clk 0:00:07.7]} 35... Kg7 {[%clk 0:01:15.9]} 36.
Rb8 {[%clk 0:00:05.4]} 36... h5 {[%clk 0:01:15.6]} 37. h4 {[%clk 0:00:02.8]}
37... Rc4 {[%clk 0:01:14.3]} 38. e4 {[%clk 0:00:02.3]} 38... Bxe4 {[%clk
0:01:02.3]} 39. Kb3 {[%clk 0:00:02.4]} 39... Bd3 {[%clk 0:00:55.2]} 40. Rxb7
{[%clk 0:00:01.8]} 40... Rxh4 {[%clk 0:00:55.9]} 41. b6 {[%clk 0:00:02]} 41...
Bf5 {[%clk 0:00:47.2]} 42. Rxf7+ {[%clk 0:00:01.2]} 42... Kxf7 {[%clk
0:00:45.6]} 43. b7 {[%clk 0:00:02.1]} 43... Be6+ {[%clk 0:00:30.6]} 44. Ka3
{[%clk 0:00:02.1]} 44... Rc4 {[%clk 0:00:16]} 45. Nb5 {[%clk 0:00:01.7]} 45...
Rf4 {[%clk 0:00:14.6]} 46. b8=Q {[%clk 0:00:01.8]} 46... Rf3+ {[%clk 0:00:15.2]}
47. Ka4 {[%clk 0:00:01.6]} 47... Rxf2 {[%clk 0:00:14.6]} 48. Nd6+ {[%clk
0:00:01.9]} 48... Kg7 {[%clk 0:00:13.6]} 49. Qc7+ {[%clk 0:00:02.2]} 49... Kh6
{[%clk 0:00:13.4]} 50. Qe7 {[%clk 0:00:02.9]} 50... Rf4+ {[%clk 0:00:12.8]} 51.
Ka5 {[%clk 0:00:02.2]} 51... Bd5 {[%clk 0:00:11.5]} 52. Qe5 {[%clk 0:00:01.8]}
52... Rg4 {[%clk 0:00:10.4]} 53. Qxd5 {[%clk 0:00:02.3]} 53... Rg5 {[%clk
0:00:10.9]} 54. Nf7+ {[%clk 0:00:02.7]} 54... Kg7 {[%clk 0:00:11.3]} 55. Nxg5
{[%clk 0:00:03.6]} 55... h4 {[%clk 0:00:11.1]} 56. Nh3 {[%clk 0:00:03.4]} 56...
Kf6 {[%clk 0:00:11.2]} 57. Qg5+ {[%clk 0:00:04.3]} 57... Kf7 {[%clk 0:00:11.7]}
58. Kb5 {[%clk 0:00:05.2]} 58... Ke6 {[%clk 0:00:12.1]} 59. Kc5 {[%clk
0:00:06.1]} 59... Kf7 {[%clk 0:00:12.5]} 60. Kd5 {[%clk 0:00:07]} 60... Kg7
{[%clk 0:00:12.2]} 61. Ke5 {[%clk 0:00:07.9]} 61... Kh7 {[%clk 0:00:12.7]} 62.
Kf6 {[%clk 0:00:07.3]} 62... Kh8 {[%clk 0:00:12.3]} 63. Qh6+ {[%clk 0:00:07.5]}
63... Kg8 {[%clk 0:00:12.8]} 64. Qg7# {[%clk 0:00:08.4]} 1-0

[Event "Early-Titled-Tuesday-Blitz-March-05-2024"]
[Site "Chess.com"]
[Date "2024.03.05"]
[Round "4"]
[White "Knightmare1014"]
[Black "verrbaa"]
[Result "0-1"]
[WhiteElo "2323"]
[BlackElo "2511"]
[TimeControl "180+1"]
[EndTime "8:43:07 PST"]
[Termination "verrbaa won on time"]

1. e4 {[%clk 0:03:00.9]} 1... c5 {[%clk 0:02:57.8]} 2. Nf3 {[%clk 0:03:01.4]}
2... e6 {[%clk 0:02:57.3]} 3. d4 {[%clk 0:03:00.6]} 3... cxd4 {[%clk 0:02:58.2]}
4. Nxd4 {[%clk 0:03:01.2]} 4... Nc6 {[%clk 0:02:58.9]} 5. Nb5 {[%clk 0:03:00.5]}
5... d6 {[%clk 0:02:58.8]} 6. c4 {[%clk 0:03:00.6]} 6... Nf6 {[%clk 0:02:55.4]}
7. N1c3 {[%clk 0:03:00.5]} 7... a6 {[%clk 0:02:55.2]} 8. Na3 {[%clk 0:03:00.6]}
8... Be7 {[%clk 0:02:54.5]} 9. Be2 {[%clk 0:03:00.1]} 9... O-O {[%clk
0:02:53.3]} 10. O-O {[%clk 0:02:57.3]} 10... Ne5 {[%clk 0:02:48.9]} 11. Be3
{[%clk 0:02:50.3]} 11... b6 {[%clk 0:02:48.1]} 12. Rc1 {[%clk 0:02:46.6]} 12...
Qc7 {[%clk 0:02:47.6]} 13. f3 {[%clk 0:02:25.8]} 13... Ned7 {[%clk 0:02:20.4]}
14. Nab1 {[%clk 0:02:22.6]} 14... Bb7 {[%clk 0:02:19.4]} 15. Qe1 {[%clk
0:02:16]} 15... Rac8 {[%clk 0:01:53.8]} 16. Qf2 {[%clk 0:02:13.3]} 16... Rfe8
{[%clk 0:01:41.6]} 17. Rfd1 {[%clk 0:02:03.4]} 17... Bd8 {[%clk 0:01:36.1]} 18.
b4 {[%clk 0:01:51.6]} 18... Qb8 {[%clk 0:01:34.4]} 19. Bf4 {[%clk 0:01:45.1]}
19... Ne5 {[%clk 0:01:30.9]} 20. Na4 {[%clk 0:01:20.9]} 20... Ba8 {[%clk
0:01:29.5]} 21. Be3 {[%clk 0:01:18.5]} 21... Nxc4 {[%clk 0:01:15.8]} 22. Bxc4
{[%clk 0:01:02]} 22... b5 {[%clk 0:01:16]} 23. Bxe6 {[%clk 0:00:40.5]} 23...
Rxc1 {[%clk 0:01:07.6]} 24. Rxc1 {[%clk 0:00:32.1]} 24... Rxe6 {[%clk 0:00:49]}
25. Nac3 {[%clk 0:00:27.9]} 25... d5 {[%clk 0:00:44.1]} 26. exd5 {[%clk
0:00:25.3]} 26... Nxd5 {[%clk 0:00:44]} 27. Nxd5 {[%clk 0:00:25.1]} 27... Bxd5
{[%clk 0:00:44.9]} 28. Qd2 {[%clk 0:00:21.3]} 28... Bb7 {[%clk 0:00:19]} 29. Bf4
{[%clk 0:00:20.5]} 29... Qa7+ {[%clk 0:00:14.3]} 30. Kh1 {[%clk 0:00:20.3]}
30... Bf6 {[%clk 0:00:13.4]} 31. Nc3 {[%clk 0:00:18.6]} 31... h6 {[%clk
0:00:13.5]} 32. Ne4 {[%clk 0:00:17.6]} 32... Bxe4 {[%clk 0:00:13.2]} 33. fxe4
{[%clk 0:00:16.7]} 33... Be5 {[%clk 0:00:10.4]} 34. Be3 {[%clk 0:00:14.7]} 34...
Qe7 {[%clk 0:00:09.3]} 35. Rc8+ {[%clk 0:00:13.9]} 35... Kh7 {[%clk 0:00:09.5]}
36. Qd3 {[%clk 0:00:11.3]} 36... Rd6 {[%clk 0:00:09.6]} 37. Qe2 {[%clk
0:00:09.5]} 37... Qh4 {[%clk 0:00:09.5]} 38. h3 {[%clk 0:00:06.5]} 38... Qg3
{[%clk 0:00:09.6]} 39. Bg1 {[%clk 0:00:05.3]} 39... Rf6 {[%clk 0:00:08.9]} 40.
Rc1 {[%clk 0:00:04.2]} 40... Rf4 {[%clk 0:00:08.1]} 41. Rf1 {[%clk 0:00:02.8]}
41... Rxf1 {[%clk 0:00:06.2]} 42. Qxf1 {[%clk 0:00:03.7]} 42... Kg8 {[%clk
0:00:06]} 43. Qf5 {[%clk 0:00:03.1]} 43... g6 {[%clk 0:00:05.4]} 44. Qc8+ {[%clk
0:00:03.2]} 44... Kg7 {[%clk 0:00:05.7]} 45. Qc1 {[%clk 0:00:02.5]} 45... Qd3
{[%clk 0:00:04.3]} 46. Qe1 {[%clk 0:00:02.2]} 46... Qc2 {[%clk 0:00:03.7]} 47.
Qe3 {[%clk 0:00:01.8]} 47... Qxa2 {[%clk 0:00:03.4]} 48. Qc5 {[%clk 0:00:01.7]}
48... Qc4 {[%clk 0:00:02.9]} 49. Qxe5+ {[%clk 0:00:01.4]} 49... Kg8 {[%clk
0:00:02.8]} 50. Qe8+ {[%clk 0:00:01.4]} 50... Kg7 {[%clk 0:00:03]} 51. Qe5+
{[%clk 0:00:01.3]} 51... Kg8 {[%clk 0:00:03.3]} 52. Qe8+ {[%clk 0:00:01.3]}
52... Kg7 {[%clk 0:00:03.6]} 53. Qa8 {[%clk 0:00:01.2]} 53... Qxb4 {[%clk
0:00:03.3]} 54. Qxa6 {[%clk 0:00:01.3]} 54... Qc4 {[%clk 0:00:03.2]} 55. Qb7
{[%clk 0:00:01.1]} 55... b4 {[%clk 0:00:03.1]} 0-1